Cogmind - Beta 16 @@@ ROGUE MODE // 2025.10.22 @ 22:11:02 Player: human Result: Destroyed by G-47 Trooper with Particle Gun Performance ------------- Evolutions (2) 1000 Regions Visited (5) 1000 Robots Destroyed (128) 640 Value Destroyed (2747) 2747 Prototype IDs (27) 540 Alien Tech Used (0) 0 Bonus (768) 768 TOTAL SCORE: 6695 Bonus ------- High Alert Combat Kills 485 Aligned with FarCom 300 Friendly Fire -17 Cogmind --------- Core Integrity 0/550 Matter 118/300 Energy 178/275 System Corruption 0% Temperature Critical (563) Movement Treading (410) Ox3 Location -8/Materials Parts ------- > --- POWER (1) -------- Deuterium Engine > --- PROPULSION (4) --- Armored Treads > --- UTILITY (3) ------ High-capacity Storage Unit Improved Medium Armor Plating Improved Medium Armor Plating > --- WEAPON (3) ------- Pulse Rifle Plasma Cannon Mini Grenade Launcher > --- INVENTORY (20) --- Light Treads Compact Wheel Cryofiber Web Cryofiber Web Huge Storage Unit Large Matter Pod (0) Hacking Suite Hacking Suite System Shield Trap Reconfigurator Ion Cannon Ion Cannon Plasma Cannon Plasma Cannon Remote Datajack Peak State ------------ > --- POWER ------------ Micro Nuclear Core > --- PROPULSION ------- Light Treads Armored Treads Armored Treads Armored Treads > --- UTILITY ---------- High-capacity Storage Unit Improved Medium Armor Plating Layered Light Armor Plating > --- WEAPON ----------- Beam Rifle Plasma Cannon Advanced Assault Cannon > --- INVENTORY -------- Nuclear Core Light Treads Light Treads Compact Wheel Cryofiber Web Cryofiber Web Large Matter Pod Improved Medium Armor Plating Improved Medium Armor Plating Improved Medium Armor Plating System Shield Trap Reconfigurator Pulse Rifle Ion Cannon Plasma Cannon Plasma Cannon Mini Grenade Launcher Mini Grenade Launcher Remote Datajack Mining Claw [Rating: 39] Favorites ----------- Power Light Ion Engine Engine Light Ion Engine Power Core Nuclear Core Propulsion Light Treads Treads Light Treads Wheel Compact Wheel Utility Improved Medium Armor Plating Device Seismic Detector Storage High-capacity Storage Unit Protection Improved Medium Armor Plating Weapon Beam Rifle Energy Gun Beam Rifle Energy Cannon Plasma Cannon Ballistic Gun Enhanced Autogun Ballistic Cannon Advanced Assault Cannon Launcher Mini Grenade Launcher Slashing Weapon Mining Claw Build | -11 -10 -10 -10 -9 -8 ------- Run | Yrd Mat Min Exi Min Mat Slots Evolved 4 | . . . . . 4 Power . | . . . . . . Propulsion 2 | . . . . . 2 Utility 1 | . . . . . 1 Weapon 1 | . . . . . 1 Parts Attached 53 | 6 6 2 1 8 30 Power 7 | 1 1 . . 3 2 Engine 5 | 1 1 . . 2 1 Core 2 | . . . . 1 1 Reactor . | . . . . . . Propulsion 12 | 2 . . . 1 9 Treads 10 | 2 . . . . 8 Leg . | . . . . . . Wheel 2 | . . . . 1 1 Hover . | . . . . . . Flight . | . . . . . . Utility 17 | 1 2 1 1 2 10 Device 5 | . 1 1 . . 3 Storage 6 | 1 1 . 1 1 2 Processor . | . . . . . . Hackware . | . . . . . . Protection 6 | . . . . 1 5 Artifact . | . . . . . . Weapon 17 | 2 3 1 . 2 9 Energy Gun 7 | 2 2 1 . . 2 Energy Cannon 4 | . . . . . 4 Ballistic Gun 1 | . . . . . 1 Ballistic Cannon 1 | . . . . . 1 Launcher 3 | . . . . 2 1 Special Weapon . | . . . . . . Impact Weapon . | . . . . . . Slashing Weapon 1 | . 1 . . . . Piercing Weapon . | . . . . . . Special Melee Weapon . | . . . . . . Unidentified Prototypes 4 | . . . . . 4 Parts Lost 18 | . 1 . . 3 14 Power 5 | . 1 . . 2 2 Propulsion 8 | . . . . 1 7 Utility 2 | . . . . . 2 Weapon 3 | . . . . . 3 Highest Loss Streak 6 | . 1 . . 2 6 To Critical Strikes . | . . . . . . Average Backups 13 | 1 6 9 9 11 18 Power . | . . . . . . Propulsion 2 | . 2 2 1 1 2 Utility 5 | . . 2 2 4 8 Weapon 5 | . 2 5 4 4 6 Tool/Special . | . . . . . . Unused Backups 17 | . 2 1 . . 14 Power . | . . . . . . Propulsion 1 | . . . . . 1 Utility 7 | . . . . . 7 Weapon 7 | . 2 1 . . 4 Tool/Special 2 | . . . . . 2 Average Slot Usage (%) 95 | . 90 100 99 82 96 Engine 6 | . 13 14 14 8 . Core 4 | . . . . 1 8 Treads 30 | . 28 28 28 25 32 Device 7 | . 5 14 13 . 5 Storage 11 | . 14 14 14 14 8 Protection 6 | . . . . 1 12 Energy Gun 18 | . 27 28 28 22 9 Energy Cannon 2 | . . . . . 4 Ballistic Cannon 3 | . . . . . 7 Launcher 2 | . . . . 5 4 Peak Build Rating 39 | 6 10 10 11 19 39 Average Rating 20 | 4 6 10 10 10 32 On Entrance 9 | . 6 9 10 10 19 Avg Prop Armor Cover (%) 13 | . . . . 12 13 Naked Turns . | . . . . . . Heaviest Build 73 | 11 20 20 20 36 73 Greatest Support 80 | 40 40 40 40 40 80 Greatest Overweight (x) 3 | 2 . . . 2 3 Average Overweight (x) . | . . . . . . Largest Inventory Capacity 35 | 8 10 10 35 15 20 Average Capacity 14 | 7 8 10 10 12 19 Most Carried 20 | 4 10 9 10 15 20 Average Carried 13 | 1 6 8 9 11 18 Final Capacity 20 | 8 10 10 10 15 20 Final Carried 15 | 4 9 9 10 15 15 Class Distribution -------------------- 57% | Mutant 23% | Skirmisher 19% | Tank Dominant Class ---------------- Mutant | -10/Materials Mutant | -10/Mines Mutant | -10/Exiles Mutant | -9/Mines Skirmisher | -8/Materials Resources | -11 -10 -10 -10 -9 -8 ----------- Run | Yrd Mat Min Exi Min Mat Matter Collected 2606 | 185 159 140 . 154 1968 Remotely . | . . . . . . Salvage Created 4292 | . 307 94 . 116 3775 Parts 219 | . 21 8 . 6 184 Haulers Intercepted 5 | . . . . . 5 Recyclers Shooed 8 | . 1 . . . 7 Parts Field Recycled . | . . . . . . Retrieved Matter . | . . . . . . Parts Self-Destructed . | . . . . . . Prevented . | . . . . . . Parts Restored . | . . . . . . Kills | -11 -10 -10 -10 -9 -8 ------- Run | Yrd Mat Min Exi Min Mat Combat Hostiles Destroyed 80 | . 8 6 . 22 44 Guns 26 | . 7 6 . 5 8 Cannons 15 | . . . . . 15 AOE 38 | . 1 . . 16 21 Classes Destroyed 14 | . 4 . . 2 8 Worker 22 | . . . . . 22 Builder 11 | . . . . . 11 Hauler 5 | . . . . . 5 Recycler 23 | . . . . . 23 Mechanic 1 | . . . . . 1 Operator 3 | . 1 . . . 2 Watcher 4 | . 1 . . . 3 Swarmer 17 | . 3 6 . 5 3 Grunt 34 | . 5 . . . 29 Duelist 1 | . . . . . 1 Sentry 8 | . . . . . 8 Demolisher 1 | . . . . 1 . Hunter 3 | . . . . . 3 Assembled 16 | . . . . 16 . Best Kill Streak 16 | . 5 3 . 16 9 Combat Bots Only 16 | . 3 3 . 16 4 Max Kills in Single Turn 9 | . 1 2 . 9 2 Gunslinging 1 | . . 1 . . . Exploded 9 | . 1 . . 9 2 Melee . | . . . . . . Uniques/NPCs Destroyed . | . . . . . . Combat | -11 -10 -10 -10 -9 -8 -------- Run | Yrd Mat Min Exi Min Mat Hostile Shots Fired 368 | . 28 19 . 40 281 Missed 105 | . 4 4 . 16 81 Hits 263 | . 24 15 . 24 200 Melee 1 | . . . . . 1 Projectile 262 | . 24 15 . 24 199 AOE 7 | . . . . 7 . Critical Strikes 7 | . . . . . 7 Damage Taken 4216 | . 246 116 . 512 3342 Core 798 | . 19 10 . 207 562 Absorbed by Shields . | . . . . . . Regen/Repaired (Parts) 485 | . . . . . 485 Core Remaining (%) 52 | 100 . . . 5 . Volleys Fired 238 | . 18 7 . 16 197 Largest 3 | . 2 2 . 2 3 Hottest 192 | . 80 112 . 112 192 Shots Fired 567 | . 36 14 . 30 487 Gun 273 | . 36 14 . 26 197 Cannon 218 | . . . . . 218 Launcher 76 | . . . . 4 72 Special . | . . . . . . Kinetic 140 | . . . . . 140 Thermal 328 | . 18 14 . 26 270 Explosive 76 | . . . . 4 72 Electromagnetic 23 | . 18 . . . 5 Robot Hit Streak 10 | . 8 8 . 6 10 Robot Miss Streak 5 | . 2 1 . 3 5 Penetration Max . | . . . . . . Secondary Targets 5 | . 3 1 . 1 . Max Gunslinging Chain 1 | . 1 1 . 1 . Shots Hit Robots 334 | . 24 11 . 17 282 Core Hits 239 | . 13 6 . 37 183 Critical Kills . | . . . . . . Critical Parts Destroyed . | . . . . . . Critical Strikes 21 | . . 2 . 3 16 Burn 15 | . . 2 . 3 10 Blast 6 | . . . . . 6 Melee Attacks 1 | . 1 . . . . Impact . | . . . . . . Slashing 1 | . 1 . . . . Piercing . | . . . . . . Sneak Attacks . | . . . . . . Combat Hostiles . | . . . . . . Follow-up Attacks . | . . . . . . Damage Inflicted 10438 | . 368 161 . 1410 8499 Guns 2654 | . 306 161 . 216 1971 Cannons 3253 | . . . . . 3253 Explosions 4531 | . 62 . . 1194 3275 Melee . | . . . . . . Ramming . | . . . . . . Kinetic 2030 | . . . . . 2030 Thermal 3708 | . 183 161 . 216 3148 Explosive 4469 | . . . . 1194 3275 Electromagnetic 231 | . 185 . . . 46 Impact . | . . . . . . Slashing . | . . . . . . Piercing . | . . . . . . Highest Corruption . | . . . . . . Average Corruption . | . . . . . . Corruption Purged . | . . . . . . Corruption Blocked . | . . . . . . Overload Shots . | . . . . . . Overflow Damage 190 | . . . . 63 127 Projectiles 89 | . . . . . 89 Explosions 101 | . . . . 63 38 Melee . | . . . . . . Knockbacks 17 | . . . . . 17 Impact . | . . . . . . Kinetic 16 | . . . . . 16 Secondary 1 | . . . . . 1 Self-Inflicted Damage 189 | . . . . 47 142 Shots 8 | . . . . 1 7 Rammed . | . . . . . . Targets Rammed . | . . . . . . Kicked . | . . . . . . Crushed . | . . . . . . Highest Temperature 893 | . 96 204 . 153 893 Average Temperature 137 | . 37 93 . 54 152 Received Heat Transfer 1440 | . 102 . . 60 1278 Effects 37 | . . . . . 37 Shutdowns 3 | . . . . . 3 Energy Bleed 4 | . . . . . 4 Interference 9 | . . . . . 9 Matter Decay 4 | . . . . . 4 Short Circuit 3 | . . . . . 3 Damage (minor) 3 | . . . . . 3 Damage (major) 8 | . . . . . 8 Damage (core) 3 | . . . . . 3 Siege Activations . | . . . . . . Martial Activations . | . . . . . . Shielding Activations . | . . . . . . Robots Disrupted . | . . . . . . Combat Hostiles . | . . . . . . Robots Corrupted . | . . . . . . Combat Hostiles . | . . . . . . Parts Fried . | . . . . . . Impact Corruptions . | . . . . . . Robots Melted 1 | . . . . 1 . Combat Hostiles 1 | . . . . 1 . Parts Melted 12 | . . 4 . 2 6 Heat Transferred 9558 | . 350 555 . 777 7876 Parts Sabotaged . | . . . . . . Parts Stolen . | . . . . . . Parts Stripped . | . . . . . . Power Chain Reactions 1 | . 1 . . . . Alert | -11 -10 -10 -10 -9 -8 ------- Run | Yrd Mat Min Exi Min Mat Maximum Alert Level 4 | . . . . . 4 Low Security (%) 60 | 100 100 100 . 100 33 Level 1 15 | . . . . . 26 Level 2 11 | . . . . . 19 Level 3 10 | . . . . . 17 Level 4 1 | . . . . . 2 Level 5 . | . . . . . . High Security . | . . . . . . Max Security . | . . . . . . Peak Influence 1212 | . 82 70 . 80 1212 Initial . | . . . . . . Average 249 | . 26 15 . 15 412 Influence Increases 2599 | . 293 140 . 189 1977 Destroy 0b10 Robot/C 1280 | . 160 120 . 120 880 Destroy 0b10 Robot/NC 345 | . 10 . . . 335 Destroy Leader 318 | . 42 20 . 10 246 Successful Hack 41 | . 15 . . . 26 Select Force Hacks 60 | . 60 . . . . Disable Machine 75 | . . . . . 75 Destroy Structure 405 | . 6 . . 29 370 Lose Combat Pursuer 75 | . . . . 30 45 Influence Decreases 1397 | . 292 111 30 189 775 Entered New Map 31 | . . 1 30 . . Time Decay 1213 | . 282 110 . 167 654 Lost Part 153 | . 10 . . 22 121 Squads Dispatched 21 | . 5 . . 1 15 Investigation 7 | . 3 . . 1 3 Extermination . | . . . . . . Reinforcement 10 | . 2 . . . 8 Assault 1 | . . . . . 1 Garrison 3 | . . . . . 3 Intercept . | . . . . . . Searches Triggered . | . . . . . . Construction Impeded 5 | . . . . . 5 Haulers Reinforced . | . . . . . . Active Scanning Responses . | . . . . . . Cargo Convoy Interrupts . | . . . . . . Stealth | -11 -10 -10 -10 -9 -8 --------- Run | Yrd Mat Min Exi Min Mat Distress Signals 5 | . 1 . . . 4 Communications Jammed . | . . . . . . Distress Signals . | . . . . . . Times Spotted 123 | . 14 6 . 27 76 Peak Tracking Total 20 | . 4 3 . 20 8 Tactical Retreats 4 | . . . . 2 2 Traps | -11 -10 -10 -10 -9 -8 ------- Run | Yrd Mat Min Exi Min Mat Traps Triggered 3 | . 1 . . . 2 Indirectly . | . . . . . . Trap Hack Attempts . | . . . . . . Triggered . | . . . . . . Disarmed . | . . . . . . Reprogrammed . | . . . . . . Reused . | . . . . . . Traps Extracted . | . . . . . . Installed . | . . . . . . Triggered . | . . . . . . Machines | -11 -10 -10 -10 -9 -8 ---------- Run | Yrd Mat Min Exi Min Mat Machines Disabled 5 | . . . . . 5 Max in Single Turn 1 | . . . . . 1 Machines Repaired . | . . . . . . Machines Dismantled . | . . . . . . Machines Sabotaged . | . . . . . . Overloaded Fab Kills . | . . . . . . Hacking | -11 -10 -10 -10 -9 -8 --------- Run | Yrd Mat Min Exi Min Mat Machines Accessed 19 | . 6 . 1 2 10 Terminals 11 | . 4 . . 1 6 Fabricators . | . . . . . . Repair Stations 1 | . . . . . 1 Recycling Units 3 | . 2 . . . 1 Scanalyzers 1 | . . . . . 1 Garrison Access 1 | . . . . . 1 Total Hacks 43 | . 14 . 1 2 26 Successful 27 | . 9 . 1 1 16 Failed 15 | . 5 . . 1 9 Catastrophic 2 | . 1 . . . 1 Database Lockouts 1 | . . . . . 1 Manual 37 | . 13 . 1 . 23 Terminals 29 | . 12 . . 1 16 Fabricators . | . . . . . . Repair Stations 2 | . . . . . 2 Recycling Units 6 | . 2 . . . 4 Scanalyzers 2 | . . . . . 2 Garrison Access 2 | . . . . . 2 Terminal Hacks 7 | . 3 . 1 1 2 Part Schematic 1 | . 1 . . . . Robot Analysis 1 | . 1 . . . . Open Door 1 | . . . . 1 . Terminal Index 1 | . . . . . 1 Alert Level 2 | . 1 . . . 1 Proto ID Catalog 1 | . . . 1 . . Fabricator Hacks . | . . . . . . Repair Station Hacks 2 | . . . . . 2 Scan Component 1 | . . . . . 1 Repair 1 | . . . . . 1 Recycling Unit Hacks . | . . . . . . Scanalyzer 1 | . . . . . 1 Retrieve Study 1 | . . . . . 1 Garrison Access Hacks . | . . . . . . Unauthorized Hacks 16 | . 6 . . . 10 Terminals 11 | . 4 . . . 7 Botnet 4 | . 2 . . . 2 Skim 7 | . 2 . . . 5 Fabricators . | . . . . . . Repair Stations . | . . . . . . Recycling Units 5 | . 2 . . . 3 Reject 1 | . . . . . 1 Recyclers 1 | . . . . . 1 Mask 1 | . . . . . 1 Tunnel 2 | . 2 . . . . Scanalyzers . | . . . . . . Garrison Access . | . . . . . . Data Cores Recovered 1 | . 1 . . . . Used 1 | . 1 . . . . Hacking Detections 14 | . 4 . . 1 9 Full Trace Events 1 | . . . . . 1 Feedback Events . | . . . . . . Feedback Blocked . | . . . . . . Robot Schematics Acquired . | . . . . . . Robots Built . | . . . . . . Authchips . | . . . . . . Time . | . . . . . . Total Robot Build Rating . | . . . . . . Part Schematics Acquired 1 | . 1 . . . . Parts Built . | . . . . . . Authchips . | . . . . . . Time . | . . . . . . Total Part Build Rating . | . . . . . . Part Studies Acquired . | . . . . . . Parts Repaired 1 | . . . . . 1 Time 26 | . . . . . 26 Parts Recycled . | . . . . . . Recycled Matter . | . . . . . . Retrieved Matter . | . . . . . . Retrieved Components . | . . . . . . Parts Scanalyzed . | . . . . . . Part Schematics Acquired . | . . . . . . Parts Damaged . | . . . . . . Bothacking | -11 -10 -10 -10 -9 -8 ------------ Run | Yrd Mat Min Exi Min Mat Used RIF Installer . | . . . . . . Robots Hacked . | . . . . . . Non-combat . | . . . . . . Combat . | . . . . . . Robot Hacks Applied . | . . . . . . Relay Couplers Released . | . . . . . . Fabnet Peak Effective % . | . . . . . . Robots Rewired . | . . . . . . Allies Hacked . | . . . . . . Hacks Repelled . | . . . . . . Allies | -11 -10 -10 -10 -9 -8 -------- Run | Yrd Mat Min Exi Min Mat Total Allies 1 | . . . . 1 . Largest Group 1 | . . . . 1 . Highest-Rated Group 31 | . . . . 31 . Highest-Rated Ally 31 | . . . . 31 . Total Orders . | . . . . . . Ally Attacks 8 | . . . . 8 . Total Damage 124 | . . . . 124 . Kills 2 | . . . . 2 . Allies Corrupted . | . . . . . . Allies Melted . | . . . . . . Intel | -11 -10 -10 -10 -9 -8 ------- Run | Yrd Mat Min Exi Min Mat Active Infowar (turns) 2132 | . 307 607 1216 . 2 Sensors 371 | . 307 62 . . 2 Seismic 1761 | . . 545 1216 . . Robot Analysis Total 1 | . 1 . . . . Derelict Logs Recovered 2 | . . 1 . 1 . Drone Launches . | . . . . . . Drone Recoveries . | . . . . . . Exploration | -11 -10 -10 -10 -9 -8 ------------- Run | Yrd Mat Min Exi Min Mat Turns Passed 6342 | 99 770 607 1284 619 2963 Spaces Moved 3350 | 57 428 364 796 354 1351 Core 10 | 10 . . . . . Treads 3122 | 47 428 364 796 282 1205 Legs . | . . . . . . Wheels 218 | . . . . 72 146 Hover . | . . . . . . Flight . | . . . . . . Fastest Speed 50 | 50 160 160 160 115 105 Average Speed 159 | 152 160 160 160 152 161 Slowest Speed 410 | 160 160 160 160 240 410 Overloaded Moves . | . . . . . . Propulsion Burnouts . | . . . . . . Robots Hopped . | . . . . . . Potential Cave-ins . | . . . . . . Cave-ins Triggered . | . . . . . . Exploration Rate (%) 62 | 4 80 69 92 58 70 Regions Visited 5 Branch Regions 3 Pre-discovered Areas 4 | . 2 1 . . 1 Known Exits Taken 1 | . . . . 1 . Unknown Exits Taken 4 | 1 1 1 1 . . Scrap Searched 2 | . . 1 . 1 . Spaces Dug 1 | . 1 . . . . Terrain Destroyed 566 | . 5 . . 35 526 Melee 1 | . 1 . . . . Projectile 80 | . . . . . 80 AOE 485 | . 4 . . 35 446 Terrain Rammed . | . . . . . . Walls Destroyed . | . . . . . . Machines Disabled . | . . . . . . Actions | -11 -10 -10 -10 -9 -8 --------- Run | Yrd Mat Min Exi Min Mat Total 3849 | 66 476 374 808 400 1725 Wait 96 | . 9 . . 10 77 Move 3345 | 56 427 363 795 353 1351 Hop . | . . . . . . Pick Up 71 | 4 10 1 7 9 40 Fast Attach 25 | 6 2 . 2 2 13 Attach 19 | . 2 . . 3 14 Detach 1 | . . . . . 1 Swap 19 | . 2 2 . 5 10 Drop 34 | . 5 1 4 2 22 Fire 238 | . 18 7 . 16 197 Melee 1 | . 1 . . . . Ram . | . . . . . . Kick . | . . . . . . Crush . | . . . . . . Escape Stasis . | . . . . . . Rewire . | . . . . . . Trap . | . . . . . . Miscellaneous . | . . . . . . Route ------- -11/Scrapyard -10/Materials (discovered 4 exits: [*Mat x2] / [*Min] / [*Sub]) -10/Mines (discovered 3 exits: [*Mat x2] / *Exi) -10/Exiles -9/Mines -8/Materials (discovered 3 exits: *Fac x3) History --------- Turn | Location | Event 17 | -11/Scrapyard | Discovered new exit (range 16) 100 | -11/Scrapyard | Entered Materials 178 | -10/Materials | Discovered new exit (range 11) 310 | -10/Materials | Build established: Mutant 429 | -10/Materials | Discovered new exit (range 15) 621 | -10/Materials | Discovered new exit (range 9) 732 | -10/Materials | Discovered new exit (range 4) 870 | -10/Materials | Entered Mines 1057 | -10/Mines | Received a Rocket Launcher from a helpful Derelict 1218 | -10/Mines | Found a hidden stash of uninstalled traps 1252 | -10/Mines | Discovered new exit (range 7) 1327 | -10/Mines | A weapon hastily lodged in a ceiling crevice suddenly fell to the ground 1398 | -10/Mines | Discovered new exit (range 5) 1419 | -10/Mines | Deemed a non-threat by the Exiles lab entrance 1421 | -10/Mines | Discovered new exit (range 5) 1477 | -10/Mines | Entered Exiles 1516 | -10/Exiles | Met 8R-AWN 1545 | -10/Exiles | Met EX-HEX 1620 | -10/Exiles | Met EX-DEC 1650 | -10/Exiles | Visited The Gauntlet 1866 | -10/Exiles | Met EX-BIN 2145 | -10/Exiles | Discovered new exit (range 10) 2252 | -10/Exiles | Aligned with FarCom system 2253 | -10/Exiles | Given EX-Vault access code 2293 | -10/Exiles | Opened EX-Vault 2313 | -10/Exiles | Found Trap Reconfigurator 2346 | -10/Exiles | Warned to stay clear of 0b10 Research branches 2761 | -10/Exiles | Left Exiles lab with Trap Reconfigurator 2761 | -10/Exiles | Entered Mines 2762 | -9/Mines | Assembled infested the area 2770 | -9/Mines | Met a Derelict bent on vengeance 2771 | -9/Mines | Received a Mining Laser from a helpful Derelict 2802 | -9/Mines | Destroyed 16 combat bots 2823 | -9/Mines | Found a damaged Exp. Sensor Array with a note attached 2847 | -9/Mines | Found Prototype Device 3272 | -9/Mines | Core integrity fell below 50% 3274 | -9/Mines | Core integrity fell below 20% 3308 | -9/Mines | Identified exit to Materials 3322 | -9/Mines | Met a Derelict shopkeep closing up shop 3380 | -9/Mines | Entered Materials 3380 | -8/Materials | Evolved 4 slots: Propulsion x2, Utility x1, Weapon x1 3837 | -8/Materials | Central database locked down 3968 | -8/Materials | Core integrity fell below 50% 3990 | -8/Materials | Discovered new exit (range 10) 4041 | -8/Materials | Build established: Skirmisher 4139 | -8/Materials | Repaired Hcp. Storage Unit 4707 | -8/Materials | Learned 2 Storage zone layouts 4745 | -8/Materials | Learned 4 Lower Caves zone layouts 4774 | -8/Materials | Learned Factory trap positions 4792 | -8/Materials | Learned location of Lower Caves (-7) 4801 | -8/Materials | Identified exit to Factory 4804 | -8/Materials | Learned location of 1 exit from Storage 4808 | -8/Materials | Learned location of 1 exit from Recycling 4821 | -8/Materials | Learned Factory emergency access door positions 4846 | -8/Materials | Learned 4 Factory zone layouts 5073 | -8/Materials | Core integrity fell below 20% 5198 | -8/Materials | Identified Exp. Sensor Array 5376 | -8/Materials | Build established: Tank 6180 | -8/Materials | First assault squad dispatched 6343 | -8/Materials | Destroyed by G-47 Trooper with Particle Gun Last Messages --------------- 06331_ The unstable cave ceiling collapses. 06333_ U-05 Engineer builds a Wall. 06334_ The unstable cave ceiling collapses. 06335_ Destroyed Lgt. Nuclear Core. 06335_ Destroyed Aluminum Leg. 06336_ Overheating: System interference. 06336_ Mni. Grenade Launcher temporarily disabled. 06336_ Pulse Rifle temporarily disabled. 06336_ The unstable cave ceiling collapses. 06337_ U-05 Engineer lays Concrete. 06338_ The unstable cave ceiling collapses. 06338_ U-05 Engineer lays Concrete. 06339_ The unstable cave ceiling collapses. 06339_ U-05 Engineer lays Concrete. 06340_ U-05 Engineer builds a Wall. 06341_ Overheating: Pulse Rifle damaged (-7). 06341_ The unstable cave ceiling collapses. 06342_ Critical hit (Burn: +37). 06343_ Overheating: Plasma Cannon damaged (-92). Map ----- +----------------------------------------------------+ | | | | | | | ??????????????????????????????????? | | ??????????????????????????????????? | | ??????????????????????????????????? | | ??????????????????????????????????? | | ???????????????????????????????#### | | ??????????????????????????????? # | | ?????????????????????????????? # | | ?????????????????????????????? ! # | | ????????############+####+### # | | ???????? # """# | | ??????? + """# | | ??????? # """# | | ????????# ## ########## # """# | | ??????#?# [ [#####???# #? """# | | ?????? # # ##?# #? # | | ?????? ### #?? # | | ????? # # #?? # | | ????????? # # #;##??### | | ??????????## # #????? | | ???????????# #t< = #????? | | ???????????# ! #????? | | ???????????# g "" #????? | | ???????????# # %@ " #????? | | ??????????# = #????? | | #?????????# ###????? | | "???######## # Y ##??????? | | T???# #??# % ## ##??????? | | "???# #??## # !"" #???????? | | #???# #???# # G" #???????? | | #???# #???# ##m "" ##???????? | | #???# #???# #u #????????? | | #???? ?????## # #######????? | | #???###+###?????# # ? #????? | | #???# % ######### # #????? | | ##### # """ #????? | | % % + """ #????? | | ##### # """ #????? | | ????# ######### # #????? | | ????#######???????# #?######????? | | ###???????????????# #???????????? | | #???????????????# #???????????? | | #???????????????# #???????????? | | #???????????????# #???????????? | | [#???????????????# #???????????? | | #???????????????# #???????????? | | ###???????????????# #???????????? | | ??????????????????# #???????????? | +----------------------------------------------------+ Best States ------------- Heat Dissipation 45 Energy Generation 15 Energy Capacity 275 Matter Stores 300 Matter Capacity 300 Sight Range 16 Robot Scan Range 20 Terrain Scan Density 10 Base Temperature (-) 100 Armor Coverage 450 Evasion (%) 40 Recoil Reduction 4 Item Schematics ----------------- Lrg. Storage Unit | -10/Materials | Hacked Robot Schematics ------------------ None Fabricated ------------ Nothing Repaired ---------- Hcp. Storage Unit | 3% | -8/Materials Studied --------- None Alien Tech Used ----------------- None Achievements -------------- Bumper Bots Construction Begets Destruction DATA ERROR: Steam Global Achievement% I Have A Map? Myspace Organ Harvest Overwhelming Sixth Sense There's More Where That Came From Well Done Challenges ------------ None Game ------ Seed WeaponsBarrageDetonator Manual? 0 Play Time 01:03:20 Cumulative 333.0 hours Start 2025.10.22 @ 20:58:26 End 2025.10.22 @ 22:11:02 Sessions 1 Manual Loads 0 Difficulty Rogue Special Mode None Game No. 255 Rogue 255 Adventurer 0 Explorer 0 Win Type - Total 4 Types 3/0/1/0/0/0/0/0/0/0 Lore% 80 Gallery% 68 Achievement% 35 Wizard Run 0 Options --------- Layout 1 ASCII 0 Keyboard 0 Movement Mouse Keybinds 0 Fullscreen 1 Font 24/Smallcaps Map View 50x35 Zoom Use 0% Tactical HUD 1 Map Filters NONE Filters NONE Steam 1 RUN: a9bb4718-9465-4778-a311-556eea7d5eb8